bitfinex-derivatives/quotes_SOLF0:USTF0_20220106
["timestamp","ask_amount","ask_price","bid_price","bid_amount"]
[1641472768557,27.66479,147.18,147.12,21.79463637]
[1641472768757,27.66479,147.18,147.12,11.57463637]
[1641472769357,27.66479,147.18,147.12,6.78725354]
[1641472770360,3.38942501,147.17,147.12,6.78725354]
[1641472771766,3.38942501,147.17,147.1,4.78738283]
[1641472773065,3.38942501,147.17,147.09,6.17741761]
[1641472774766,3.38942501,147.17,147.1,4.78738283]
[1641472775566,27.66479,147.18,147.11,4.78738283]
[1641472775866,27.66479,147.18,147.11,9.61438283]
[1641472777267,3.39029092,147.17,147.11,9.61438283]
[1641472779168,27.66479,147.18,147.11,9.61438283]
[1641472780169,27.66479,147.18,147.11,4.78738283]
[1641472781770,27.66479,147.18,147.12,4.78738283]
[1641472781771,4.0,147.16,147.12,4.78738283]
[1641472781969,27.66479,147.18,147.12,4.78738283]
[1641472782170,31.66479,147.18,147.12,4.78738283]
[1641472782370,27.66479,147.18,147.12,4.78738283]
[1641472782572,3.39156583,147.17,147.1,4.78738283]
[1641472782770,27.66479,147.14,147.1,4.78738283]
[1641472785177,27.66479,147.14,147.11,4.78738283]
[1641472785374,91.58639,147.18,147.11,4.78738283]
[1641472786579,3.39386414,147.17,147.11,6.17784609]
[1641472786779,27.66479,147.15,147.11,6.17784609]
[1641472787378,27.66479,147.15,147.12,4.78738283]
[1641472788881,91.58639,147.18,147.12,4.78738283]
[1641472789881,3.39405702,147.17,147.12,4.78738283]
[1641472790583,91.58639,147.18,147.12,4.78738283]
[1641472790790,91.58639,147.18,147.13,4.78738283]
[1641472791382,91.58639,147.18,147.12,4.78738283]
[1641472792285,3.39503008,147.17,147.12,4.78738283]
[1641472792984,91.58639,147.18,147.13,4.78738283]
[1641472793185,27.66479,147.18,147.13,4.78738283]
[1641472794688,3.39872004,147.17,147.13,4.78738283]
[1641472797695,3.39872004,147.17,147.15,6.78541137]
[1641472797895,3.39872004,147.17,147.15,12.30041137]
[1641472798697,14.36190898,147.18,147.15,12.30041137]
[1641472798896,37.6560215,147.22,147.15,12.30041137]
[1641472799297,65.3208115,147.22,147.16,4.78738283]
[1641472799496,14.38912759,147.21,147.16,4.78738283]
[1641472800496,14.38912759,147.21,147.15,4.78738283]
[1641472801398,14.38912759,147.21,147.16,4.78738283]
[1641472802097,18.38912759,147.21,147.16,4.78738283]
[1641472802698,14.38912759,147.21,147.16,4.78738283]
[1641472802899,12.25514129,147.21,147.14,4.78738283]
[1641472803098,69.0264,147.2,147.14,4.78738283]
[1641472803800,69.0264,147.2,147.15,4.78738283]
[1641472804203,73.0264,147.2,147.15,4.78738283]
[1641472804600,69.0264,147.2,147.15,4.78738283]
[1641472804800,69.0264,147.2,147.14,4.79274231]
[1641472805001,4.0,147.19,147.14,4.79274231]
[1641472805201,4.0,147.16,147.14,4.231e-05]
[1641472805402,27.66479,147.15,147.11,6.91614222]
[1641472805601,27.66479,147.15,147.05,4.222e-05]
[1641472805800,31.66479,147.15,147.05,4.222e-05]
[1641472806002,27.66479,147.15,147.05,4.222e-05]
[1641472806202,4.0,147.14,147.05,4.222e-05]
[1641472806402,4.0,147.13,147.05,4.222e-05]
[1641472806603,4.0,147.13,147.03,37.6560215]
[1641472806802,4.0,147.13,147.01,6.79186335]
[1641472807203,4.0,147.12,147.01,17.07186335]
[1641472807404,27.66479,147.08,147.01,17.07186335]
[1641472808804,27.66479,147.08,147.01,21.07186335]
[1641472809404,27.66479,147.08,147.01,17.07186335]
[1641472810805,27.66479,147.08,147.01,21.07186335]
[1641472811007,27.66479,147.08,147.01,17.07186335]
[1641472811708,27.66479,147.1,147.02,20.0]
[1641472811907,27.66479,147.1,147.02,29.505]
[1641472812307,27.66479,147.1,147.04,6.79047975]
[1641472812708,67.813,147.14,147.05,24.0]
[1641472812910,67.813,147.14,147.06,4.0]
[1641472813108,37.6560215,147.2,147.06,4.0]
[1641472813307,37.6560215,147.2,147.05,29.72]
[1641472813308,170.8390215,147.2,147.05,29.72]
[1641472813510,27.66479,147.15,147.06,4.0]
[1641472813709,64.8657,147.14,147.07,4.0]
[1641472813910,64.8657,147.14,147.08,6.78863582]
[1641472814112,64.8657,147.14,147.08,12.55863582]
[1641472815312,64.8657,147.14,147.08,36.55863582]
[1641472815512,27.66479,147.15,147.08,36.55863582]
[1641472816312,27.66479,147.15,147.08,5.77]
[1641472816514,27.66479,147.15,147.05,10.63506929]
[1641472816913,27.66479,147.15,147.05,3.84505062]
[1641472817112,27.66479,147.15,147.04,65.3208115]
[1641472817311,4.0,147.13,147.02,49.95242358]
[1641472817512,27.66479,147.1,147.02,49.95242358]
[1641472818013,27.66479,147.1,147.02,12.29640208]
[1641472818413,27.66479,147.1,147.02,16.29640208]
[1641472819814,27.66479,147.1,147.02,12.29640208]
[1641472820913,27.66479,147.15,147.02,12.29640208]
[1641472821515,27.66479,147.12,147.04,27.66479]
[1641472821914,34.91479,147.12,147.04,27.66479]
[1641472822315,38.91479,147.12,147.02,10.63584307]
[1641472822516,73.6468,147.11,147.02,6.79140208]
[1641472822716,69.6468,147.11,147.02,6.79140208]
[1641472823118,4.0,147.1,147.02,6.79140208]
[1641472823318,4.0,147.09,147.01,10.28]
[1641472823518,27.66479,147.07,146.99,10.63738638]
[1641472823719,27.66479,147.07,146.99,3.8443696]
[1641472824317,27.66479,147.07,146.98,27.66479]
[1641472824919,67.9353,147.06,146.98,27.66479]
[1641472826020,67.9353,147.06,146.97,14.1443696]
[1641472827229,67.9353,147.06,146.97,10.3]
[1641472827526,73.0943,147.06,146.97,17.17868381]
[1641472828625,67.9353,147.06,146.97,17.17868381]
[1641472829028,67.9353,147.06,147.0,4.0]
[1641472829227,37.6560215,147.15,147.02,24.0]
[1641472829228,14.31119781,147.13,147.02,24.0]
[1641472829429,64.4454,147.1,147.0,6.79232467]
[1641472829632,64.4454,147.1,147.02,27.66479]
[1641472830032,64.4454,147.1,147.02,41.97598781]
[1641472830432,64.4454,147.1,147.02,14.31119781]
[1641472830631,4.0,147.08,147.02,14.31119781]
[1641472830833,9.062,147.08,147.02,14.31119781]
[1641472831033,5.062,147.08,147.02,9.781e-05]
[1641472831232,4.0,147.07,147.0,9.781e-05]
[1641472831432,4.0,147.05,147.0,9.781e-05]
[1641472831633,27.66479,147.02,147.0,9.781e-05]
[1641472832232,31.66479,147.02,146.93,59.70268075]
[1641472832434,58.84475327,147.01,146.93,59.70268075]
[1641472832932,58.84475327,147.01,146.92,16.89624847]
[1641472832933,58.84475327,147.01,146.92,54.55226997]
[1641472833832,58.84475327,147.01,146.92,16.89624847]
[1641472834633,58.84475327,147.01,146.93,37.6560215]
[1641472834835,58.84475327,147.01,146.93,44.2740215]
[1641472835533,58.84475327,147.01,146.93,6.618]
[1641472836235,58.84475327,147.01,146.93,10.618]
[1641472836434,58.84475327,147.01,146.93,14.4623696]
[1641472836635,58.84475327,147.01,146.93,10.4623696]
[1641472837133,58.84475327,147.01,146.93,17.3429234]
[1641472837736,27.66479,146.99,146.93,17.3429234]
[1641472838034,58.84475327,147.01,146.95,6.79486308]
[1641472838835,27.66479,147.02,146.96,24.0]
[1641472839035,27.66479,147.02,146.96,26.5]
[1641472839236,68.4389,147.09,146.97,6.79370903]
[1641472839436,132.2459,147.09,146.97,6.79370903]
[1641472839635,136.2459,147.09,146.97,1.38607344]
[1641472839836,27.66479,147.02,146.97,1.38607344]
[1641472840339,69.3434,147.04,146.97,1.38607344]
[1641472844642,73.3434,147.04,146.97,1.38607344]
[1641472844842,4.0,147.03,146.97,1.38607344]
[1641472845042,73.3434,147.04,146.97,1.38607344]
[1641472845843,27.66479,147.01,146.97,1.38607344]
[1641472846044,27.66479,147.01,146.93,1.38607344]
[1641472846243,69.4295,147.0,146.93,1.38607344]
[1641472846644,76.2495,147.0,146.93,1.38607344]
[1641472846945,4.0,146.98,146.93,39.04209494]
[1641472847150,4.0,146.99,146.93,39.04209494]
[1641472847444,76.2495,147.0,146.93,39.04209494]
[1641472847844,27.66479,146.98,146.92,1.38607344]
[1641472849045,27.66479,146.98,146.9,37.6560215]
[1641472849046,27.66479,146.98,146.9,1.38607344]
[1641472849849,55.32958,146.98,146.9,1.38607344]
[1641472850849,55.32958,146.98,146.89,1.38607344]
[1641472851850,27.66479,146.98,146.91,6.79671039]
[1641472852050,69.4295,147.0,146.91,12.79771039]
[1641472853051,69.4295,147.0,146.92,1.38607344]
[1641472853953,69.4295,147.0,146.94,6.79532482]
[1641472854152,69.4295,147.0,146.94,13.52332482]
[1641472854555,27.66479,147.01,146.97,6.79393981]
[1641472854753,27.66479,147.04,146.97,17.87593981]
[1641472854954,67.4304,147.09,147.0,6.79255536]
[1641472855155,130.7923,147.09,147.0,12.38455536]
[1641472855956,158.45709,147.09,147.02,6.79140208]
[1641472856356,91.02669,147.09,147.02,6.79140208]
[1641472856756,63.3619,147.09,147.02,6.79140208]
[1641472856957,27.66479,147.11,147.03,1.38607344]
[1641472857159,27.66479,147.11,147.03,8.36107344]
[1641472857356,27.66479,147.11,147.03,12.36107344]
[1641472857559,27.66479,147.11,147.03,8.36107344]
[1641472857958,27.66479,147.11,147.06,6.78955766]
[1641472858156,95.46329,147.15,147.06,13.55455766]
[1641472859057,95.46329,147.15,147.1,6.78771424]
[1641472859256,27.66479,147.15,147.1,13.67071424]
[1641472859557,64.397,147.16,147.1,13.67071424]
[1641472859957,27.66479,147.19,147.1,13.67071424]
[1641472860158,27.66479,147.19,147.11,1.38607344]
[1641472860862,31.66479,147.19,147.11,1.38607344]
[1641472861460,4.0,147.16,147.11,1.38607344]
[1641472861860,27.66479,147.15,147.08,1.38607344]
[1641472865661,31.66479,147.15,147.08,1.38607344]
[1641472865863,27.66479,147.15,147.07,11.55341133]
[1641472869669,27.66479,147.15,147.08,4.0]
[1641472869868,86.38740233,147.22,147.1,6.78794461]
[1641472870071,27.66479,147.19,147.1,34.45273461]
[1641472870873,27.66479,147.19,147.1,39.21681876]
[1641472871876,27.66479,147.19,147.1,32.42887415]
[1641472872077,27.66479,147.15,147.1,32.42887415]
[1641472872677,64.2594,147.18,147.1,32.42887415]
[1641472872877,64.2594,147.18,147.1,27.66479]
[1641472878180,27.66479,147.16,147.1,27.66479]
[1641472878981,27.66479,147.16,147.1,51.66479]
[1641472879182,64.2594,147.18,147.1,47.66479]
[1641472879382,64.2594,147.18,147.1,27.66479]
[1641472880282,64.2594,147.18,147.1,32.42887415]
[1641472882989,64.2594,147.18,147.11,4.0]
[1641472883187,64.2594,147.18,147.12,11.55110736]
[1641472883988,64.2594,147.18,147.13,6.15035324]
[1641472884887,64.2594,147.18,147.15,4.76408415]
[1641472885088,27.66479,147.19,147.15,4.76408415]
[1641472885491,27.66479,147.19,147.13,1.38626909]
[1641472885797,32.98479,147.19,147.13,1.38626909]
[1641472885992,32.98479,147.19,147.13,6.909e-05]
[1641472886594,27.66479,147.15,147.13,6.909e-05]
[1641472886792,27.66479,147.15,147.11,4.78481323]
[1641472889494,14.30750233,147.18,147.11,4.78481323]
[1641472889895,14.30750233,147.18,147.14,4.78474414]
[1641472889896,3.39707122,147.18,147.14,4.78474414]
[1641472890796,3.39707122,147.18,147.14,4.871]
[1641472891398,27.66479,147.19,147.14,4.871]
[1641472891699,27.66479,147.19,147.14,9.65574414]
[1641472893397,27.66479,147.19,147.16,4.78474414]
[1641472893599,23.16650303,147.19,147.16,4.78474414]
[1641472894201,23.16650303,147.19,147.15,1.39206225]
[1641472895203,23.16650303,147.19,147.16,4.7873186]
[1641472897705,4.0,147.17,147.13,14.30750233]
[1641472897905,4.0,147.16,147.13,2.33e-06]
[1641472898104,6.577,147.16,147.13,2.33e-06]
[1641472898505,27.66479,147.14,147.1,38.28966932]
[1641472898905,6.577,147.16,147.1,38.28966932]
[1641472899104,6.577,147.16,147.09,14.35901731]
[1641472900005,6.577,147.16,147.1,14.35901731]
[1641472901507,6.577,147.16,147.1,21.14673155]
[1641472902109,6.577,147.16,147.11,15.7493449]
[1641472902607,0.0001,147.16,147.15,51.66479]
[1641472902810,61.7243,147.21,147.15,58.07479]
[1641472903008,14.30750233,147.23,147.15,34.07479]
[1641472904008,14.30750233,147.23,147.15,27.66479]
[1641472904309,3.39458162,147.25,147.17,14.35901731]
[1641472905408,7.39458162,147.25,147.17,14.35901731]
[1641472905609,3.39458162,147.25,147.16,1.39032759]
[1641472905809,8.28558162,147.25,147.16,1.39032759]
[1641472906408,12.28558162,147.25,147.16,1.39032759]
[1641472906608,12.28558162,147.25,147.15,1.39032759]
[1641472906609,3.39458162,147.24,147.15,1.39032759]
[1641472906809,27.66479,147.23,147.15,1.39032759]
[1641472908510,4.0,147.2,147.15,1.39032759]
[1641472908909,27.66479,147.18,147.15,1.39032759]
[1641472909313,27.66479,147.18,147.11,1.39032759]
[1641472910114,82.81190233,147.22,147.11,1.39032759]
[1641472910315,14.30750233,147.22,147.14,6.78587181]
[1641472910512,14.30750233,147.22,147.14,13.66287181]
[1641472911113,14.30750233,147.22,147.14,6.877]
[1641472911312,27.66479,147.23,147.15,1.39032759]
[1641472911712,4.0,147.22,147.15,1.39032759]
[1641472911912,4.0,147.21,147.15,1.39032759]
[1641472912211,4.0,147.21,147.14,1.39032759]
[1641472912613,7.39335514,147.22,147.14,1.39032759]
[1641472912813,3.39335514,147.22,147.14,1.39032759]
[1641472913014,27.66479,147.2,147.14,1.39032759]
[1641472913214,27.66479,147.2,147.14,4.78222479]
[1641472914916,27.66479,147.2,147.15,4.78222479]
[1641472915415,41.97229233,147.23,147.15,9.36222479]
[1641472915815,41.97229233,147.23,147.17,4.78222479]
[1641472916015,27.66479,147.23,147.17,4.78222479]
[1641472917016,3.39326737,147.22,147.16,6.17255238]
[1641472917215,27.66479,147.2,147.16,6.17255238]
[1641472918217,27.66479,147.2,147.15,4.78222479]
[1641472921220,27.66479,147.2,147.16,4.78222479]
[1641472925323,27.66479,147.17,147.16,4.78222479]
[1641472925621,32.71779,147.17,147.16,4.78222479]
[1641472926122,32.71779,147.17,147.15,4.78222479]
[1641472927026,27.66479,147.17,147.15,4.78222479]
[1641472928429,31.66479,147.17,147.15,2.479e-05]
[1641472929033,31.66479,147.17,147.14,2.479e-05]
[1641472929633,27.66479,147.17,147.14,2.479e-05]
[1641472930134,27.66479,147.17,147.13,2.479e-05]
[1641472930934,41.97229233,147.2,147.14,4.0]
[1641472931135,41.97229233,147.2,147.16,6.78495098]
[1641472931336,14.30750233,147.2,147.16,6.78495098]
[1641472931935,38.29090002,147.23,147.19,2.479e-05]
[1641472932135,27.66479,147.25,147.19,2.479e-05]
[1641472934737,3.39671799,147.24,147.19,2.479e-05]
[1641472935739,27.66479,147.25,147.2,2.479e-05]
[1641472938438,27.66479,147.25,147.19,2.479e-05]
[1641472940542,27.66479,147.25,147.2,2.479e-05]
[1641472941841,27.66479,147.25,147.19,2.479e-05]
[1641472945544,34.56579,147.25,147.19,2.479e-05]
[1641472945747,4.0,147.23,147.19,2.479e-05]
[1641472945944,4.0,147.22,147.17,5.238e-05]
[1641472946144,4.0,147.19,147.17,5.238e-05]
[1641472946344,4.774,147.19,147.15,0.00014958]
[1641472946546,4.0,147.18,147.15,0.00014958]
[1641472946746,4.774,147.19,147.15,0.00014958]
[1641472947248,4.774,147.19,147.14,4.78129466]
[1641472947447,27.66479,147.18,147.14,4.78129466]
[1641472948547,27.66479,147.18,147.13,4.78129466]
[1641472949447,27.66479,147.18,147.14,4.78129466]
[1641472950147,95.73239,147.2,147.14,4.78129466]
[1641472950347,95.73239,147.2,147.14,9.42229466]
[1641472951047,68.0676,147.2,147.14,9.42229466]
[1641472951249,18.30750233,147.26,147.17,4.78129466]
[1641472951449,27.66479,147.22,147.17,4.78129466]
[1641472952349,27.66479,147.22,147.18,4.78129466]
[1641472953050,27.66479,147.22,147.17,4.78129466]
[1641472954053,27.66479,147.22,147.17,11.56601547]
[1641472954252,27.66479,147.24,147.17,11.56601547]
[1641472954859,27.66479,147.24,147.19,4.78129466]
[1641472955856,27.66479,147.24,147.18,6.16855445]
[1641472956858,41.97229233,147.27,147.19,20.0]
[1641472957063,41.97229233,147.27,147.21,4.0]
[1641472957262,41.97229233,147.27,147.21,4.866]
[1641472957660,41.97229233,147.27,147.21,9.64729466]
[1641472957661,27.66479,147.27,147.21,9.64729466]
[1641472958261,27.66479,147.27,147.21,4.78129466]
[1641472958965,3.39379702,147.26,147.19,4.78129466]
[1641472959963,3.39379702,147.26,147.2,4.78129466]
[1641472962168,7.39379702,147.26,147.2,4.78129466]
[1641472962366,3.39379702,147.26,147.2,4.78129466]
[1641472962966,3.39379702,147.26,147.19,1.38697521]
[1641472963167,17.70129935,147.26,147.18,4.78129466]
[1641472964070,17.70129935,147.26,147.2,4.78129466]
[1641472964268,3.39379702,147.26,147.2,4.78129466]
[1641472964668,4.0,147.24,147.2,4.78129466]
[1641472964968,7.39379702,147.26,147.2,4.78129466]
[1641472965570,27.66479,147.23,147.2,4.78129466]
[1641472965970,27.66479,147.23,147.18,4.78129466]
[1641472966972,27.66479,147.23,147.19,4.78129466]
[1641472968574,27.66479,147.23,147.18,4.78129466]
[1641472969475,27.66479,147.2,147.18,4.78129466]
[1641472969675,27.66479,147.2,147.16,1.38697521]
[1641472969875,31.66479,147.2,147.16,1.38697521]
[1641472970076,4.0,147.19,147.16,1.38697521]
[1641472970275,6.56,147.19,147.16,4.78437614]
[1641472971478,6.56,147.19,147.15,6.17135135]
[1641472971679,31.66479,147.2,147.15,6.17135135]
[1641472971881,4.0,147.18,147.15,6.17135135]
[1641472972078,6.197,147.18,147.15,6.17135135]
[1641472972280,4.0,147.16,147.11,24.97387808]
[1641472972481,4.0,147.15,147.11,18.18662454]
[1641472972681,63.8214,147.17,147.11,14.34388398]
[1641472973180,4.0,147.15,147.13,4.78363731]
[1641472973380,4.0,147.14,147.13,4.78363731]
[1641472973580,59.32958,147.14,147.1,14.34388398]
[1641472973780,4.0,147.12,147.06,38.28966932]
[1641472974182,4.0,147.12,147.09,4.78436081]
[1641472974384,4.0,147.11,147.06,14.35308242]
[1641472974982,4.0,147.1,147.06,14.35308242]
[1641472975181,4.0,147.1,147.06,8.242e-05]
[1641472975583,27.66479,147.07,147.06,8.242e-05]
[1641472975784,36.84979,147.07,147.06,8.242e-05]
[1641472976183,36.84979,147.07,147.05,4.77491166]
[1641472976384,32.84979,147.07,147.05,4.77491166]
[1641472976584,4.0,147.12,147.04,1.3819951]
[1641472976785,66.0574,147.13,147.04,1.3819951]
[1641472976986,66.0574,147.13,147.05,6.7902492]
[1641472977184,66.0574,147.13,147.05,10.7902492]
[1641472977387,66.0574,147.13,147.04,5.3819951]
[1641472977585,93.72219,147.13,147.06,11.56374186]
[1641472977785,66.0574,147.13,147.06,11.56374186]
[1641472978388,66.0574,147.13,147.06,4.7741842]
[1641472978587,66.0574,147.13,147.09,4.7741842]
[1641472978886,31.66479,147.16,147.09,4.7741842]
[1641472979087,4.0,147.15,147.09,4.7741842]
[1641472979387,31.66479,147.16,147.09,4.7741842]
[1641472979590,27.66479,147.13,147.09,4.7741842]
[1641472979788,27.66479,147.13,147.05,6.88329259]
[1641472979789,27.66479,147.13,147.08,4.7741842]
[1641472981591,27.66479,147.13,147.09,4.7741842]
[1641472982290,27.66479,147.16,147.09,8.7741842]
[1641472982491,130.6327,147.2,147.09,8.7741842]
[1641472983191,130.6327,147.2,147.11,4.7741842]
[1641472983591,27.66479,147.19,147.11,4.7741842]
[1641472983991,27.66479,147.19,147.11,6.1561793]
[1641472984992,27.66479,147.19,147.11,4.7741842]
[1641472985594,27.66479,147.19,147.12,4.0]
[1641472985994,27.66479,147.21,147.13,4.0]
[1641472986194,27.66479,147.21,147.13,10.78633233]
[1641472986594,66.2621,147.23,147.14,4.0]
[1641472986797,66.2621,147.23,147.14,8.519]
[1641472988196,27.66479,147.24,147.14,8.519]
[1641472988395,27.66479,147.24,147.15,4.0]
[1641472988797,27.66479,147.24,147.16,4.0]
[1641472988997,27.66479,147.24,147.15,10.1483427]
[1641472989197,27.66479,147.24,147.16,4.0]
[1641472989597,27.66479,147.24,147.15,10.1483427]
[1641472989801,27.66479,147.24,147.15,8.7741842]
[1641472990199,27.66479,147.24,147.17,4.0]
[1641472990998,27.66479,147.24,147.18,4.0]
[1641472991205,66.9339,147.25,147.17,6.78449065]
[1641472991403,66.9339,147.25,147.19,4.0]
[1641472991603,27.66479,147.27,147.19,4.0]
[1641472992002,27.66479,147.27,147.18,31.66479]
[1641472992202,27.66479,147.27,147.18,27.66479]
[1641472992602,27.66479,147.27,147.18,31.66479]
[1641472993105,27.66479,147.27,147.18,32.4389742]
[1641472993604,27.66479,147.27,147.18,36.4389742]
[1641472993804,27.66479,147.27,147.19,4.0]
[1641472994004,27.66479,147.27,147.18,32.4389742]
[1641472995106,27.66479,147.27,147.19,4.0]
[1641472995503,27.66479,147.27,147.18,32.4389742]
[1641472995704,27.66479,147.27,147.18,36.4389742]
[1641472996104,27.66479,147.27,147.18,32.4389742]
[1641472996306,27.66479,147.27,147.18,36.4389742]
[1641472996505,27.66479,147.27,147.18,32.4389742]
[1641472996706,27.66479,147.27,147.2,6.78334012]
[1641472998706,27.66479,147.27,147.19,4.0]
[1641472999309,27.66479,147.27,147.18,31.66479]
[1641472999507,27.66479,147.27,147.18,27.66479]
[1641473000908,27.66479,147.27,147.18,37.72479]
[1641473001110,27.66479,147.27,147.18,41.72479]
[1641473001312,27.66479,147.27,147.18,37.72479]
[1641473002711,27.66479,147.27,147.18,41.72479]
[1641473003310,27.66479,147.27,147.19,4.0]
[1641473003511,27.66479,147.27,147.21,6.78288001]
[1641473003712,27.66479,147.27,147.23,4.0]
[1641473003914,27.66479,147.27,147.21,12.41188001]
[1641473004310,27.66479,147.27,147.22,27.66479]
[1641473005012,27.66479,147.27,147.23,4.0]
[1641473005412,41.97229233,147.32,147.24,4.0]
[1641473005613,14.30750233,147.32,147.26,4.0]
[1641473005813,14.30750233,147.33,147.24,15.57450007]
[1641473006014,14.30750233,147.33,147.24,11.57450007]
[1641473006215,14.30750233,147.33,147.27,27.66479]
[1641473006415,14.30750233,147.33,147.27,34.82479]
[1641473006815,14.30750233,147.33,147.27,38.82479]
[1641473007017,14.30750233,147.33,147.27,34.82479]
[1641473007216,63.9864,147.35,147.27,34.82479]
[1641473009819,3.38808258,147.34,147.27,34.82479]
[1641473010219,27.66479,147.33,147.27,34.82479]
[1641473011922,27.66479,147.33,147.27,7.16]
[1641473012119,27.66479,147.33,147.24,4.7741842]
[1641473012321,27.66479,147.25,147.24,4.7741842]
[1641473012519,34.77079,147.25,147.2,8.242e-05]
[1641473013123,4.0,147.23,147.2,8.242e-05]
[1641473013328,4.0,147.23,147.17,4.7677394]
[1641473013519,34.77079,147.25,147.17,4.7677394]
[1641473013520,4.0,147.22,147.17,4.7677394]
[1641473013724,4.0,147.21,147.15,1.37637847]
[1641473014020,4.0,147.17,147.15,7.847e-05]
[1641473014220,4.0,147.16,147.15,7.847e-05]
[1641473014423,31.66479,147.16,147.15,7.847e-05]
[1641473014821,31.66479,147.16,147.14,8.242e-05]
[1641473015221,31.66479,147.16,147.13,4.76928077]
[1641473015222,4.0,147.15,147.13,4.76928077]
[1641473015521,4.0,147.15,147.13,8.077e-05]
[1641473015922,4.0,147.14,147.13,8.077e-05]
[1641473016124,4.0,147.14,147.1,8.077e-05]
[1641473016423,66.3833,147.15,147.1,8.077e-05]
[1641473017223,66.3833,147.15,147.05,6.79001867]
[1641473017224,66.3833,147.15,147.08,8.077e-05]
[1641473018325,27.66479,147.13,147.09,8.077e-05]
[1641473021526,27.66479,147.13,147.08,8.077e-05]
[1641473022527,27.66479,147.13,147.09,8.077e-05]
[1641473025130,27.66479,147.13,147.06,1.37703162]
[1641473025131,27.66479,147.13,147.07,8.077e-05]
[1641473025930,31.66479,147.13,147.07,8.077e-05]
[1641473026130,31.66479,147.13,147.05,8.077e-05]
[1641473027031,4.0,147.13,147.05,8.077e-05]
[1641473027231,4.0,147.14,147.05,8.077e-05]
[1641473027432,4.0,147.14,147.04,8.077e-05]
[1641473027631,4.0,147.14,147.04,1.37711239]
[1641473027632,27.66479,147.09,147.04,1.37711239]
[1641473028435,27.66479,147.09,147.03,8.077e-05]
[1641473029137,34.30679,147.09,147.03,8.077e-05]
[1641473029737,38.30679,147.09,147.03,8.077e-05]
[1641473029937,4.0,147.07,147.03,8.077e-05]
[1641473030338,34.30679,147.09,147.02,8.077e-05]
[1641473030339,4.0,147.08,147.02,8.077e-05]
[1641473030539,4.0,147.07,147.01,1.37703162]
[1641473030740,34.30679,147.09,147.01,1.37703162]
[1641473030939,4.0,147.07,146.99,8.242e-05]
[1641473031138,73.55454847,147.08,146.95,42.11995929]
[1641473031341,4.0,147.02,146.98,4.74230855]
[1641473031540,27.66479,147.0,146.98,4.74230855]
[1641473031940,27.66479,147.0,146.98,8.55e-06]
[1641473032143,31.66479,147.0,146.98,8.55e-06]
[1641473032741,31.66479,147.0,146.94,4.74201185]
[1641473032940,4.0,146.99,146.94,4.74201185]
[1641473033140,8.903,146.99,146.93,3.496e-05]
[1641473033340,4.903,146.99,146.93,3.496e-05]
[1641473033540,27.66479,146.97,146.93,3.496e-05]
[1641473033939,27.66479,146.97,146.91,21.02956448]
[1641473034140,27.66479,146.97,146.9,4.73696702]
[1641473035643,31.66479,146.97,146.9,4.73696702]
[1641473036443,31.66479,146.97,146.88,11.53483249]
[1641473036641,27.66479,146.97,146.88,11.53483249]
[1641473037441,31.66479,146.97,146.88,11.53483249]
[1641473037644,27.66479,146.94,146.88,11.53483249]
[1641473038343,27.66479,146.94,146.89,6.09714251]
[1641473039047,4.0,146.93,146.89,6.09714251]
[1641473039444,4.0,146.93,146.88,4.73696702]
[1641473039646,27.66479,146.91,146.88,4.73696702]
[1641473040646,27.66479,146.91,146.87,4.73696702]
[1641473041548,27.66479,146.91,146.85,1.36154057]
[1641473041549,27.66479,146.91,146.86,4.73696702]
[1641473041746,27.66479,146.94,146.86,4.73696702]
[1641473041747,27.66479,146.94,146.87,4.0]
[1641473041949,27.66479,146.94,146.87,9.547]
[1641473042346,27.66479,146.94,146.87,5.547]
[1641473042548,27.66479,146.94,146.89,4.73696702]
[1641473044749,27.66479,146.94,146.89,11.24396702]
[1641473045650,67.5521,146.98,146.9,10.09850759]
[1641473045849,67.5521,146.98,146.91,34.46150039]
[1641473046551,27.66479,146.99,146.92,1.36154057]
[1641473046752,27.66479,146.99,146.94,4.73696702]
[1641473047650,27.66479,146.99,146.93,4.73696702]
[1641473047851,27.66479,146.94,146.93,4.73696702]
[1641473048050,33.53979,146.94,146.93,4.73696702]
[1641473048350,37.53979,146.94,146.93,4.73696702]
[1641473048553,33.53979,146.94,146.93,4.73696702]